Cogmind - Beta 11.1 @@@ ROGUE MODE // 2022.06.29 @ 22:39:12 Player: Cyurio Result: Self-destructed Performance ------------- Evolutions (6) 3000 Regions Visited (10) 2000 Robots Destroyed (28) 140 Value Destroyed (1009) 1009 Prototype IDs (27) 540 Alien Tech Used (0) 0 Bonus (828) 828 TOTAL SCORE: 7517 Bonus ------- Follower Combat Kills 28 Entered DSFs 500 Aligned with FarCom 300 Cogmind --------- Core Integrity 1104/1150 Matter 163/300 Energy 150/150 System Corruption 1% Temperature Cool (0) Movement Flying (111) Ox1 Location -4/Factory Parts ------- > --- POWER (2) -------- Micro Fission Core > --- PROPULSION (5) --- Improved Flight Unit Field Propulsion Drive Nuclear Pulse Array > --- UTILITY (10) ----- Large Storage Unit Enhanced Optical Array Improved Sensor Array Advanced Signal Interpreter Melee Analysis Suite Improved Melee Analysis Suite Improved Weapon Shielding > --- WEAPON (2) ------- Heavy Pick > --- INVENTORY (15) --- Cooled Deuterium Engine Micro Fission Core Micro Fission Core Micro Fission Core Micro Fission Core Light Antimatter Reactor Gravmag System Gravmag System Antigrav System Microactuators Mini Grenade Launcher Chainsword Longsword +1 Heavy Pick Peak State ------------ > --- POWER ------------ Micro Fission Core Micro Fission Core > --- PROPULSION ------- Compact Wheel Gravmag System Gravmag System Antigrav System Linear Gravjet > --- UTILITY ---------- Large Storage Unit Weight Redist. System Enhanced Optical Array Improved Sensor Array Advanced Signal Interpreter Melee Analysis Suite Improved Melee Analysis Suite Improved Weapon Shielding > --- WEAPON ----------- Longsword +1 Heavy Pick > --- INVENTORY -------- Cooled Deuterium Engine Micro Fission Core Micro Fission Core Micro Fission Core Light Antimatter Reactor Improved Flight Unit Nuclear Pulse Thruster Field Propulsion Drive Nuclear Pulse Array Microactuators Mini Grenade Launcher Chainsword Heavy Pick [Rating: 79] Favorites ----------- Power Ion Engine Engine Ion Engine Power Core Micro Fission Core Propulsion Light Treads Treads Light Treads Leg Aluminum Leg Wheel Compact Wheel Hover Unit Gravmag System Flight Unit Improved Flight Unit Utility Large Storage Unit Device Sensor Array Storage Large Storage Unit Processor Improved Melee Analysis Suite Protection Improved Weapon Shielding Weapon Longsword +1 Energy Gun Beam Rifle Ballistic Gun Assault Rifle Ballistic Cannon Light Cannon Slashing Weapon Longsword +1 Piercing Weapon Heavy Pick Build | -11 -10 -10 -10 -9 -8 -7 -7 -6 -5 -4 ------- Run | Scr Mat Min Exi Min Mat Fac DSF Fac Fac Fac Slots Evolved 12 | . . . . . 4 2 . 2 2 2 Power 1 | . . . . . . . . 1 . . Propulsion 3 | . . . . . 2 1 . . . . Utility 8 | . . . . . 2 1 . 1 2 2 Weapon . | . . . . . . . . . . . Parts Attached 83 | . 19 . . . 17 9 1 22 7 8 Power 10 | . 2 . . . 1 . . 5 . 2 Engine 6 | . 2 . . . . . . 4 . . Core 4 | . . . . . 1 . . 1 . 2 Reactor . | . . . . . . . . . . . Propulsion 42 | . 8 . . . 7 5 . 13 4 5 Treads 11 | . 8 . . . 3 . . . . . Leg . | . . . . . . . . . . . Wheel 5 | . . . . . 2 . . 3 . . Hover 9 | . . . . . . . . 5 3 1 Flight 17 | . . . . . 2 5 . 5 1 4 Utility 17 | . 4 . . . 3 4 1 1 3 1 Device 9 | . 3 . . . 1 2 1 1 1 . Storage 1 | . 1 . . . . . . . . . Processor 5 | . . . . . 1 2 . . 2 . Hackware . | . . . . . . . . . . . Protection 2 | . . . . . 1 . . . . 1 Artifact . | . . . . . . . . . . . Weapon 14 | . 5 . . . 6 . . 3 . . Energy Gun 1 | . . . . . 1 . . . . . Energy Cannon . | . . . . . . . . . . . Ballistic Gun 3 | . 1 . . . 2 . . . . . Ballistic Cannon 5 | . 4 . . . 1 . . . . . Launcher . | . . . . . . . . . . . Special Weapon . | . . . . . . . . . . . Impact Weapon . | . . . . . . . . . . . Slashing Weapon 3 | . . . . . 2 . . 1 . . Piercing Weapon 2 | . . . . . . . . 2 . . Special Melee Weapon . | . . . . . . . . . . . Unidentified Prototypes 2 | . . . . . 1 . . 1 . . Parts Lost 23 | . 1 . . . 7 . 1 11 . 3 Power 4 | . 1 . . . . . 1 2 . . Propulsion 12 | . . . . . 4 . . 7 . 1 Utility 4 | . . . . . 1 . . 1 . 2 Weapon 3 | . . . . . 2 . . 1 . . Highest Loss Streak 11 | . 1 . . . 4 . 1 11 . 2 To Critical Strikes . | . . . . . . . . . . . Average Slot Usage (%) 89 | . 95 100 71 71 93 87 96 86 87 84 Engine 9 | . 13 14 14 14 8 . . 8 5 2 Treads 15 | . 27 28 28 28 19 3 . . . . Wheel 5 | . . . . . 13 3 . 1 5 4 Hover 5 | . . . . . . . . 18 14 16 Flight 2 | . . . . . . 21 38 9 1 1 Device 10 | . 11 14 14 14 10 10 7 8 11 9 Storage 9 | . 14 14 14 14 9 7 7 6 5 5 Processor 9 | . . . . . 6 12 23 20 29 23 Protection 2 | . . . . . 7 4 . . . 5 Ballistic Gun 5 | . 17 14 . . 3 . . . . . Ballistic Cannon 2 | . 9 14 . . 1 . . . . . Slashing Weapon 7 | . . . . . 12 15 15 10 5 4 Naked Turns . | . . . . . . . . . . . Heaviest Build 48 | 12 31 31 26 26 33 35 30 48 38 40 Greatest Support 68 | 20 40 40 40 40 68 30 30 51 22 44 Greatest Overweight (x) 3 | . 1 . . . 3 2 . 3 1 1 Average Overweight (x) . | . . . . . . . . . 1 . Largest Inventory Capacity 15 | . 15 15 15 15 15 15 15 15 15 15 Average Capacity 14 | . 14 15 15 15 15 15 15 15 15 15 Most Carried 15 | . 15 15 15 15 15 14 13 15 14 15 Average Carried 13 | . 9 15 14 15 13 13 13 13 9 13 Final Capacity 15 | 8 15 15 15 15 15 15 15 15 15 15 Final Carried 15 | 6 15 15 15 15 15 13 13 9 14 14 Class Distribution -------------------- 52% | Mutant 38% | Assassin 6% | Skirmisher Dominant Class ---------------- Mutant | -10/Materials Mutant | -10/Mines Mutant | -10/Exiles Mutant | -9/Mines Assassin | -8/Materials Sprinter | -7/Factory Sprinter | -7/DSF Mutant | -6/Factory Assassin | -5/Factory Assassin | -4/Factory Resources | -11 -10 -10 -10 -9 -8 -7 -7 -6 -5 -4 ----------- Run | Scr Mat Min Exi Min Mat Fac DSF Fac Fac Fac Matter Collected 1104 | 200 234 . . 23 370 . . 227 . 50 Remotely . | . . . . . . . . . . . Salvage Created 1220 | . 283 . . . 465 . . 342 . 130 Parts 68 | . 15 . . . 26 . . 19 . 8 Haulers Intercepted 2 | . 1 . . . . . . . . 1 Recyclers Shooed . | . . . . . . . . . . . Parts Field Recycled . | . . . . . . . . . . . Retrieved Matter . | . . . . . . . . . . . Parts Self-Destructed . | . . . . . . . . . . . Prevented . | . . . . . . . . . . . Kills | -11 -10 -10 -10 -9 -8 -7 -7 -6 -5 -4 ------- Run | Scr Mat Min Exi Min Mat Fac DSF Fac Fac Fac Combat Hostiles Destroyed 22 | . 7 . . . 10 . . 4 . 1 Melee 13 | . . . . . 8 . . 4 . 1 Guns 6 | . 4 . . . 2 . . . . . Cannons 3 | . 3 . . . . . . . . . Classes Destroyed 9 | . 2 . . . 5 . . 2 . . Hauler 2 | . 1 . . . . . . . . 1 Recycler 2 | . . . . . 1 . . 1 . . Operator 1 | . . . . . 1 . . . . . Watcher 1 | . . . . . . . . 1 . . Swarmer 3 | . . . . . 3 . . . . . Grunt 11 | . 7 . . . 4 . . . . . Sentry 4 | . . . . . 2 . . 2 . . Hunter 1 | . . . . . 1 . . . . . Programmer 3 | . . . . . . . . 2 . 1 Best Kill Streak 4 | . 4 . . . 4 . . 4 . 1 Combat Bots Only 3 | . 3 . . . 3 . . 2 . 1 Max Kills in Single Turn 1 | . 1 . . . 1 . . 1 . 1 Gunslinging . | . . . . . . . . . . . Exploded . | . . . . . . . . . . . Melee 1 | . . . . . 1 . . 1 . 1 Uniques/NPCs Destroyed . | . . . . . . . . . . . Combat | -11 -10 -10 -10 -9 -8 -7 -7 -6 -5 -4 -------- Run | Scr Mat Min Exi Min Mat Fac DSF Fac Fac Fac Damage Taken 2354 | . 449 . . . 911 . 108 570 . 316 Core 345 | . 64 . . . 139 . 42 54 . 46 Absorbed by Shields . | . . . . . . . . . . . Redirected to Shielding 13 | . . . . . . . . . . 13 Core Remaining (%) 89 | 100 . . . 74 74 . 94 93 100 . Volleys Fired 49 | . 27 . . . 22 . . . . . Largest 2 | . 2 . . . 2 . . . . . Hottest 58 | . 55 . . . 58 . . . . . Shots Fired 95 | . 54 . . . 41 . . . . . Gun 72 | . 37 . . . 35 . . . . . Cannon 23 | . 17 . . . 6 . . . . . Launcher . | . . . . . . . . . . . Special . | . . . . . . . . . . . Kinetic 95 | . 54 . . . 41 . . . . . Thermal . | . . . . . . . . . . . Explosive . | . . . . . . . . . . . Electromagnetic . | . . . . . . . . . . . Robot Hit Streak 11 | . 8 . . . 11 . . . . . Robot Miss Streak 2 | . 2 . . . 2 . . . . . Penetration Max . | . . . . . . . . . . . Secondary Targets . | . . . . . . . . . . . Shots Hit Robots 110 | . 39 . . . 48 . . 13 . 10 Core Hits 39 | . 16 1 . . 13 . . 6 . 3 Critical Kills . | . . . . . . . . . . . Critical Parts Destroyed 1 | . 1 . . . . . . . . . Critical Strikes 3 | . 1 . . . . . . 1 . 1 Destroy 1 | . 1 . . . . . . . . . Sever 2 | . . . . . . . . 1 . 1 Melee Attacks 94 | . . . . . 26 . 2 39 2 25 Impact . | . . . . . . . . . . . Slashing 61 | . . . . . 26 . 2 27 . 6 Piercing 33 | . . . . . . . . 12 2 19 Sneak Attacks 5 | . . . . . 2 . . 2 . 1 Combat Hostiles 1 | . . . . . . . . 1 . . Follow-up Attacks 4 | . . . . . 1 . . 2 . 1 Damage Inflicted 2944 | . 559 7 . . 1225 . . 719 . 434 Guns 638 | . 348 . . . 290 . . . . . Cannons 279 | . 211 . . . 68 . . . . . Explosions . | . . . . . . . . . . . Melee 2017 | . . . . . 864 . . 719 . 434 Ramming 10 | . . 7 . . 3 . . . . . Kinetic 917 | . 559 . . . 358 . . . . . Thermal . | . . . . . . . . . . . Explosive . | . . . . . . . . . . . Electromagnetic . | . . . . . . . . . . . Impact . | . . . . . . . . . . . Slashing 1507 | . . . . . 864 . . 596 . 47 Piercing 510 | . . . . . . . . 123 . 387 Highest Corruption 2 | . 1 1 1 1 2 . . . . 1 Average Corruption 1 | . 1 1 1 1 2 . . . . 1 Corruption Purged . | . . . . . . . . . . . Corruption Blocked . | . . . . . . . . . . . Effects 24 | . 5 1 2 1 14 . . . . 1 Message Errors 7 | . . . 1 . 6 . . . . . Matter Fused 3 | . . 1 . 1 1 . . . . . Heat Flow Errors 2 | . 2 . . . . . . . . . Energy Discharges 2 | . . . . . 2 . . . . . Parts Rejected 1 | . 1 . . . . . . . . . Data Loss (minor) 7 | . 1 . 1 . 4 . . . . 1 Data Loss (major) 2 | . 1 . . . 1 . . . . . Overload Shots . | . . . . . . . . . . . Overflow Damage 122 | . . . . . 93 . . 29 . . Projectiles . | . . . . . . . . . . . Explosions . | . . . . . . . . . . . Melee 122 | . . . . . 93 . . 29 . . Knockbacks 6 | . 3 1 . . 2 . . . . . Impact 1 | . . 1 . . . . . . . . Kinetic 5 | . 3 . . . 2 . . . . . Secondary . | . . . . . . . . . . . Self-Inflicted Damage 1 | . . . . . 1 . . . . . Shots . | . . . . . . . . . . . Rammed 2 | . . 1 . . 1 . . . . . Targets Rammed 2 | . . 1 . . 1 . . . . . Kicked . | . . . . . . . . . . . Crushed . | . . . . . . . . . . . Highest Temperature 246 | . 246 . . . 6 4 . 2 . . Average Temperature 33 | . 42 . . . 4 4 . 2 . . Received Heat Transfer 525 | . 279 . . . 171 . . 48 . 27 Siege Activations . | . . . . . . . . . . . Robots Corrupted . | . . . . . . . . . . . Combat Hostiles . | . . . . . . . . . . . Parts Fried . | . . . . . . . . . . . Impact Corruptions . | . . . . . . . . . . . Robots Melted . | . . . . . . . . . . . Combat Hostiles . | . . . . . . . . . . . Parts Melted . | . . . . . . . . . . . Heat Transferred . | . . . . . . . . . . . Parts Sabotaged . | . . . . . . . . . . . Parts Stolen . | . . . . . . . . . . . Parts Stripped . | . . . . . . . . . . . Power Chain Reactions . | . . . . . . . . . . . Missiles Intercepted . | . . . . . . . . . . . Alert | -11 -10 -10 -10 -9 -8 -7 -7 -6 -5 -4 ------- Run | Scr Mat Min Exi Min Mat Fac DSF Fac Fac Fac Peak Influence 196 | . 140 5 . . 162 16 26 196 62 92 Initial 30 | . . 5 . . . 16 11 8 10 30 Average 56 | . 81 5 . . 52 16 17 65 37 55 Maximum Alert Level . | . . . . . . . . . . . Low Security (%) 100 | . 100 100 . 100 100 100 100 100 100 100 Level 1 . | . . . . . . . . . . . Level 2 . | . . . . . . . . . . . Level 3 . | . . . . . . . . . . . Level 4 . | . . . . . . . . . . . Level 5 . | . . . . . . . . . . . High Security . | . . . . . . . . . . . Max Security . | . . . . . . . . . . . Squads Dispatched 12 | . 3 . . . 1 . 1 6 . 1 Investigation 2 | . 1 . . . 1 . . . . . Extermination 3 | . . . . . . . . 2 . 1 Reinforcement 4 | . 2 . . . . . 1 1 . . Assault . | . . . . . . . . . . . Garrison 3 | . . . . . . . . 3 . . Intercept . | . . . . . . . . . . . Searches Triggered . | . . . . . . . . . . . Construction Impeded . | . . . . . . . . . . . Haulers Reinforced . | . . . . . . . . . . . Active Scanning Responses . | . . . . . . . . . . . Cargo Convoy Interrupts . | . . . . . . . . . . . Stealth | -11 -10 -10 -10 -9 -8 -7 -7 -6 -5 -4 --------- Run | Scr Mat Min Exi Min Mat Fac DSF Fac Fac Fac Distress Signals 4 | . 3 . . . 1 . . . . . Communications Jammed . | . . . . . . . . . . . Distress Signals . | . . . . . . . . . . . Times Spotted 60 | . 16 . . . 21 . 3 10 . 10 Peak Tracking Total 8 | . 5 . . . 4 . 4 2 . 8 Tactical Retreats 6 | . 2 . . . 1 . . 3 . . Traps | -11 -10 -10 -10 -9 -8 -7 -7 -6 -5 -4 ------- Run | Scr Mat Min Exi Min Mat Fac DSF Fac Fac Fac Traps Triggered 9 | . 6 . . . 1 . . 2 . . Indirectly . | . . . . . . . . . . . Trap Hack Attempts . | . . . . . . . . . . . Triggered . | . . . . . . . . . . . Disarmed . | . . . . . . . . . . . Reprogrammed . | . . . . . . . . . . . Reused . | . . . . . . . . . . . Traps Extracted . | . . . . . . . . . . . Installed . | . . . . . . . . . . . Triggered . | . . . . . . . . . . . Machines | -11 -10 -10 -10 -9 -8 -7 -7 -6 -5 -4 ---------- Run | Scr Mat Min Exi Min Mat Fac DSF Fac Fac Fac Machines Disabled 1 | . . . . . 1 . . . . . Max in Single Turn 1 | . . . . . 1 . . . . . Garrison Access 1 | . . . . . . . . 1 . . Machines Sabotaged . | . . . . . . . . . . . Garrisons Compromised . | . . . . . . . . . . . Overloaded Fab Kills . | . . . . . . . . . . . Hacking | -11 -10 -10 -10 -9 -8 -7 -7 -6 -5 -4 --------- Run | Scr Mat Min Exi Min Mat Fac DSF Fac Fac Fac Machines Accessed 21 | . 3 . 1 . 2 2 . 7 5 1 Terminals 16 | . 3 . . . 2 1 . 5 4 1 Fabricators 1 | . . . . . . 1 . . . . Repair Stations . | . . . . . . . . . . . Recycling Units . | . . . . . . . . . . . Scanalyzers 2 | . . . . . . . . 1 1 . Garrison Access 1 | . . . . . . . . 1 . . Total Hacks 41 | . 10 . 1 . 4 2 . 13 9 2 Successful 19 | . 4 . 1 . 2 1 . 6 5 . Failed 22 | . 6 . . . 2 1 . 7 4 2 Catastrophic 5 | . 2 . . . . 1 . . 2 . Database Lockouts . | . . . . . . . . . . . Manual 25 | . 9 . 1 . 2 . . 6 5 2 Terminals 33 | . 10 . . . 4 1 . 8 8 2 Fabricators 1 | . . . . . . 1 . . . . Repair Stations . | . . . . . . . . . . . Recycling Units . | . . . . . . . . . . . Scanalyzers 4 | . . . . . . . . 3 1 . Garrison Access 2 | . . . . . . . . 2 . . Terminal Hacks 8 | . 1 . 1 . 2 1 . 2 1 . Record 1 | . . . . . . . . . 1 . Prototype ID Bank 1 | . . . . . 1 . . . . . Open DSF 2 | . . . . . . 1 . 1 . . Level Access Points 1 | . . . . . . . . 1 . . Emergency Access Points 1 | . 1 . . . . . . . . . Zone Layout 1 | . . . . . 1 . . . . . EX-Prototype ID Bank 1 | . . . 1 . . . . . . . Fabricator Hacks . | . . . . . . . . . . . Repair Station Hacks . | . . . . . . . . . . . Recycling Unit Hacks . | . . . . . . . . . . . Scanalyzer 1 | . . . . . . . . 1 . . Insert Component 1 | . . . . . . . . 1 . . Garrison Access Hacks 1 | . . . . . . . . 1 . . Seal Access 1 | . . . . . . . . 1 . . Unauthorized Hacks 9 | . 3 . . . . . . 2 4 . Terminals 9 | . 3 . . . . . . 2 4 . Track 1 | . . . . . . . . . 1 . Assimilate 1 | . 1 . . . . . . . . . Botnet 7 | . 2 . . . . . . 2 3 . Fabricators . | . . . . . . . . . . . Repair Stations . | . . . . . . . . . . . Recycling Units . | . . . . . . . . . . . Scanalyzers . | . . . . . . . . . . . Garrison Access . | . . . . . . . . . . . Data Cores Recovered . | . . . . . . . . . . . Used . | . . . . . . . . . . . Hacking Detections 17 | . 3 . . . 2 1 . 6 4 1 Full Trace Events 1 | . 1 . . . . . . . . . Feedback Events 1 | . 1 . . . . . . . . . Corruption 1 | . 1 . . . . . . . . . Feedback Blocked . | . . . . . . . . . . . Robot Schematics Acquired . | . . . . . . . . . . . Robots Built . | . . . . . . . . . . . Authchips . | . . . . . . . . . . . Time . | . . . . . . . . . . . Total Robot Build Rating . | . . . . . . . . . . . Part Schematics Acquired . | . . . . . . . . . . . Parts Built . | . . . . . . . . . . . Authchips . | . . . . . . . . . . . Time . | . . . . . . . . . . . Total Part Build Rating . | . . . . . . . . . . . Parts Repaired . | . . . . . . . . . . . Time . | . . . . . . . . . . . Parts Recycled . | . . . . . . . . . . . Recycled Matter . | . . . . . . . . . . . Retrieved Matter . | . . . . . . . . . . . Retrieved Components . | . . . . . . . . . . . Parts Scanalyzed 1 | . . . . . . . . 1 . . Part Schematics Acquired . | . . . . . . . . . . . Parts Damaged . | . . . . . . . . . . . Bothacking | -11 -10 -10 -10 -9 -8 -7 -7 -6 -5 -4 ------------ Run | Scr Mat Min Exi Min Mat Fac DSF Fac Fac Fac Used RIF Installer . | . . . . . . . . . . . Robots Hacked . | . . . . . . . . . . . Non-combat . | . . . . . . . . . . . Combat . | . . . . . . . . . . . Robot Hacks Applied . | . . . . . . . . . . . Relay Couplers Released . | . . . . . . . . . . . Fabnet Peak Effective % . | . . . . . . . . . . . Robots Rewired . | . . . . . . . . . . . Allies Hacked . | . . . . . . . . . . . Hacks Repelled . | . . . . . . . . . . . Allies | -11 -10 -10 -10 -9 -8 -7 -7 -6 -5 -4 -------- Run | Scr Mat Min Exi Min Mat Fac DSF Fac Fac Fac Total Allies 3 | . . . . 3 . . . . . . Largest Group 3 | . . . . 3 3 . . . . . Highest-Rated Group 40 | . . . . 40 40 . . . . . Highest-Rated Ally 16 | . . . . 16 16 . . . . . Total Orders . | . . . . . . . . . . . Ally Attacks 20 | . . . . . 20 . . . . . Total Damage 153 | . . . . . 153 . . . . . Kills 5 | . . . . . 5 . . . . . Allies Corrupted . | . . . . . . . . . . . Allies Melted . | . . . . . . . . . . . Intel | -11 -10 -10 -10 -9 -8 -7 -7 -6 -5 -4 ------- Run | Scr Mat Min Exi Min Mat Fac DSF Fac Fac Fac Robot Analysis Total . | . . . . . . . . . . . Derelict Logs Recovered 1 | . . . . 1 . . . . . . Drone Launches . | . . . . . . . . . . . Drone Recoveries . | . . . . . . . . . . . Exploration | -11 -10 -10 -10 -9 -8 -7 -7 -6 -5 -4 ------------- Run | Scr Mat Min Exi Min Mat Fac DSF Fac Fac Fac Turns Passed 4490 | . 823 178 335 63 1546 71 14 890 280 290 Spaces Moved 2743 | 1 427 111 208 40 472 111 30 847 204 292 Core 99 | . . . . . 45 . . 54 . . Treads 1048 | . 416 111 208 40 273 . . . . . Legs 12 | 1 11 . . . . . . . . . Wheels 718 | . . . . . 154 20 . 240 204 100 Hover 711 | . . . . . . . . 553 . 158 Flight 155 | . . . . . . 91 30 . . 34 Fastest Speed 27 | 120 120 160 160 160 110 27 27 44 115 32 Average Speed 110 | 120 159 160 160 160 144 43 27 69 115 70 Slowest Speed 240 | 120 240 160 160 160 200 120 27 200 115 115 Overloaded Moves . | . . . . . . . . . . . Propulsion Burnouts . | . . . . . . . . . . . Robots Hopped 5 | . . . . . . 1 . . . 4 Cave-ins Triggered . | . . . . . . . . . . . Exploration Rate (%) 27 | 2 74 37 61 10 33 4 35 31 7 12 Regions Visited 10 Branch Regions 3 Pre-discovered Areas . | . . . . . . . . . . . Known Exits Taken 4 | . . . . . 1 1 . 1 1 . Unknown Exits Taken 5 | 1 1 1 1 1 . . . . . . Scrap Searched 1 | . . . . 1 . . . . . . Spaces Dug 38 | . . . . . 6 . . 20 2 10 Terrain Destroyed 38 | . . . . . 6 . . 20 2 10 Melee 38 | . . . . . 6 . . 20 2 10 Projectile . | . . . . . . . . . . . AOE . | . . . . . . . . . . . Terrain Rammed . | . . . . . . . . . . . Walls Destroyed . | . . . . . . . . . . . Machines Disabled . | . . . . . . . . . . . Actions | -11 -10 -10 -10 -9 -8 -7 -7 -6 -5 -4 --------- Run | Scr Mat Min Exi Min Mat Fac DSF Fac Fac Fac Total 4009 | . 508 111 213 39 1276 130 32 1121 245 334 Wait 979 | . 21 . . . 729 9 . 184 24 12 Move 2723 | . 426 110 207 39 471 108 29 846 203 284 Hop 5 | . . . . . . 1 . . . 4 Pick Up 50 | . 10 . 1 . 9 . . 20 7 3 Fast Attach 26 | . 12 . . . 4 3 1 5 1 . Attach 31 | . 2 . . . 10 3 . 7 5 4 Detach 12 | . 2 . 2 . 2 2 . . 2 2 Swap 26 | . 5 . . . 3 3 . 10 1 4 Drop 30 | . 3 . 3 . 3 1 . 18 . 2 Fire 49 | . 27 . . . 22 . . . . . Melee 76 | . . . . . 22 . 2 31 2 19 Ram 1 | . . . . . 1 . . . . . Kick . | . . . . . . . . . . . Crush 1 | . . 1 . . . . . . . . Escape Stasis . | . . . . . . . . . . . Rewire . | . . . . . . . . . . . Trap . | . . . . . . . . . . . Miscellaneous . | . . . . . . . . . . . Route ------- -11/Scrapyard -10/Materials (discovered 3 exits: [*Mat x2] / [*Min]) -10/Mines -10/Exiles -9/Mines -8/Materials (discovered 2 exits: *Fac x2) -7/Factory -7/DSF -6/Factory (discovered 4 exits: *Fac x4) -5/Factory -4/Factory (discovered 1 exit: *Arm) History --------- Turn | Location | Event 1 | -11/Scrapyard | Discovered new exit (range 0) 1 | -11/Scrapyard | Entered Materials 238 | -10/Materials | Discovered new exit (range 16) 302 | -10/Materials | Build established: Mutant 409 | -10/Materials | Discovered new exit (range 5) 705 | -10/Materials | Discovered new exit (range 13) 824 | -10/Materials | Entered Mines 996 | -10/Mines | Deemed a non-threat by the Exiles lab entrance 996 | -10/Mines | Discovered new exit (range 5) 1002 | -10/Mines | Entered Exiles 1048 | -10/Exiles | Met 8R-AWN 1068 | -10/Exiles | Met EX-HEX 1115 | -10/Exiles | Met EX-BIN 1137 | -10/Exiles | Aligned with FarCom system 1139 | -10/Exiles | Given EX-Vault access code 1177 | -10/Exiles | Opened EX-Vault 1186 | -10/Exiles | Found Longsword +1 1217 | -10/Exiles | Warned to stay clear of 0b10 Research branches 1264 | -10/Exiles | Met EX-DEC 1318 | -10/Exiles | Discovered new exit (range 14) 1337 | -10/Exiles | Left Exiles lab with Longsword +1 1337 | -10/Exiles | Entered Mines 1344 | -9/Mines | Assisted by bots powering up and referring to "LRC-V3" 1357 | -9/Mines | Learned location of 2 exits from Materials 1369 | -9/Mines | Discovered new exit (range 8) 1400 | -9/Mines | Entered Materials 1400 | -8/Materials | Accompanied by 3 allies 1400 | -8/Materials | Evolved 4 slots: Propulsion x2, Utility x2 1401 | -8/Materials | Identified exit to Factory 1761 | -8/Materials | Lost 4 parts (2n1u1w) 2031 | -8/Materials | Build established: Assassin 2946 | -8/Materials | Entered Factory 2946 | -7/Factory | Evolved 2 slots: Propulsion x1, Utility x1 3017 | -7/Factory | Identified exit to DSF 3017 | -7/Factory | Entered DSF 3022 | -7/DSF | Discovered new exit (range 13) 3031 | -7/DSF | Entered Factory 3031 | -6/Factory | Evolved 2 slots: Power x1, Utility x1 3323 | -6/Factory | Build established: Mutant 3693 | -6/Factory | Garrison activated, responded to threat 3726 | -6/Factory | Discovered new exit (range 16) 3735 | -6/Factory | Identified exit to Factory 3797 | -6/Factory | Lost 11 parts (2p7n1u1w) 3921 | -6/Factory | Entered another Factory area 3921 | -5/Factory | Evolved 2 slots: Utility x2 4121 | -5/Factory | Discovered new exit (range 21) 4154 | -5/Factory | Identified exit to Factory 4201 | -5/Factory | Entered another Factory area 4201 | -4/Factory | Evolved 2 slots: Utility x2 4222 | -4/Factory | Build established: Assassin 4432 | -4/Factory | Spotted B-86 Titan 4448 | -4/Factory | Discovered new exit (range 9) 4485 | -4/Factory | Identified exit to Armory 4491 | -4/Factory | Self-destructed Last Messages --------------- 04344_ Acquired 50 matter. 04346_ Acquired Antigrav System. 04365_ Sneak attack on A-15 Conveyor. 04368_ K-01 Serf cleans the Subcomponent Replicator. 04378_ ALERT: Security rotation in progress. 04378_ K-01 Serf cleans the Subcomponent Replicator. 04396_ System corrupted: Component data lost. 04397_ Longsword +1 follow-up attack on A-15 Conveyor. 04397_ A-15 Conveyor Med. Treads severed. 04401_ A-15 Conveyor destroyed. 04438_ Acquired Microactuators. 04448_ EXIT=FOUND 04448_ Y-72 Warden suffers critical hit (Destroy). 04451_ ALERT: Rogue bot located, Programmers report to Factory Zone 7U. 04474_ Dropped Linear Gravjet. 04474_ Dropped Com. Wheel. 04477_ Construction Platform disabled. 04477_ Nuclear Pulse Thruster destroyed. 04485_ EXIT=IDENTIFIED: ARMORY 04487_ Weight Redist. System destroyed. Map ----- +----------------------------------------------------+ | ??????????????????????????????????? | | ??????????????????????????????????? | | ??????????????????????????????????? | | ??????????????????????????????????? | | ??????????????????????????????????? | | ??????????????????????????????????? | | ??????????????????????????????????? | | ??????????????????????????????????? | | ??????????????????????????????????? | | ??????????????????????????????????? | | ??????????????????????????????????? | | ??????????????????????????????????? | | ??????????????????????????????????? | | ??????????????????????????????????? | | ??????????????????????????????????? | | ???????????????????????############ | | ???????????????????????#" # | | ??????######??########### = =# | | ??????#"""""??#"""" #?# = # | | ??????#" [??# " #?# """"""" # | | ??????#" [??# #?# """""" # | | ??????#" "??# #?# """"""" # | | ??????#"" #### """ #?# """""" # | | ??????#" # ##" #?# # | | ??????#"" # #" ####g######## | | ??????#"" @# #" #Y g #???? | | ??????#"" # p Yg/Y #???? | | ??????#" + > p / #???? | | ??????#"" # / #???? | | ??????#"" # #" # #???? | | ??????#"" # #" ### #???? | | ??????#" # ##" #?# ##### | | ??????#"" #### """ #?# | | ??????#" "??# #?# | | ??????#" [??# #?# | | ??????#" [??# " #?# | | ??????#"""""??#"""" #?# ]] | | ??????######??#########?# ]] | | ??????Y?????????????????# ]] | | ???????????????????? """ | | ?????????????????# """ | | ?????????????????# """ | | ?????????????????# | | ???????????????? | | ????????????????####+########### | | ???????????????????????????????# | | ???????????????????????????????# * | | ???????????????????????????????+ * | | ???????????????????????????????# | | ???????????????????????????????# | +----------------------------------------------------+ Best States ------------- Heat Dissipation 43 Energy Generation 31 Energy Capacity 360 Matter Stores 300 Matter Capacity 300 Sight Range 22 Robot Scan Range 15 Terrain Scan Density 10 ECM Strength 1 Additional Mass Support 6 Weapon Shielding 66 Melee Speed Boost 20 Evasion (%) 64 Melee Accuracy 17 Recoil Reduction 3 Item Schematics ----------------- None Robot Schematics ------------------ None Fabricated ------------ Nothing Alien Tech Used ----------------- None Achievements -------------- None Challenges ------------ None Game ------ Seed BattleBombardmentTrap Manual? 0 Play Time 00:42:50 Cumulative 52.2 hours Start 2022.06.29 @ 21:56:30 End 2022.06.29 @ 22:39:12 Sessions 1 Manual Loads 0 Difficulty Rogue Special Mode None Game No. 83 Rogue 83 Adventurer 0 Explorer 0 Win Type - Total 0 Types 0/0/0/0/0/0/0/0/0 Lore% 33 Gallery% 36 Achievement% 30 Wizard Run 0 Options --------- ASCII 0 Keyboard 1 Movement Vi Keybinds 1 Fullscreen 1 Font 24/Smallcaps Map View 76x50 Tactical HUD 1 Map Filters NONE Filters NONE Steam 1 RUN: 208d9f63-751b-420e-ac74-74154e56f711